Cogmind - Beta 11 --- EXPLORER MODE // 2022.04.06 @ 22:53:54 Player: Harwe Result: Destroyed by Executioner with Helical Railgun Performance ------------- Evolutions (5) 2500 Regions Visited (19) 3800 Robots Destroyed (261) 1305 Value Destroyed (11535) 11535 Prototype IDs (52) 1040 Alien Tech Used (0) 0 Bonus (4027) 4027 TOTAL SCORE: 24207 Bonus ------- High Alert Combat Kills 106 Follower Combat Kills 1222 Entered Garrisons 200 Aligned with FarCom 300 MAIN.C Attacked Warlord 500 Warlord Defense Kill 962 A7 Reached Mainframe 300 Met R17 at Cetus 500 Friendly Fire -63 Cogmind --------- Core Integrity 0/1000 Matter 260/300 Energy 375/375 System Corruption 1% Temperature Cool (-150) Movement Walking (190) Ox1 Location -5/Warlord Parts ------- > --- POWER (3) -------- Light Nuclear Core Neutrino Core > --- PROPULSION (4) --- Carbon-fiber Leg Carbon-fiber Leg Flexi-carbon Leg > --- UTILITY (7) ------ Improved Cryofiber Web Advanced Heat Sink Large Storage Unit Targeting Computer Heavy Armor Plating Centrium Medium Armor Plating > --- WEAPON (4) ------- Vortex Cannon > --- INVENTORY (15) --- Advanced Heat Sink Improved Trap Scanner Triangulator Experimental Sensor Array Improved Transmission Jammer Advanced ECM Suite Centrium Medium Armor Plating Powered Armor Improved Component Analysis Suite Heavy Autocannon Peak State ------------ > --- POWER ------------ Enhanced Nuclear Core Fission Core Quantum Reactor > --- PROPULSION ------- Medium Treads Improved Medium Treads Centrium Heavy Treads > --- UTILITY ---------- Improved Cooling System Large Storage Unit Improved Transmission Jammer Layered Medium Armor Plating Layered Medium Armor Plating Centrium Medium Armor Plating Centrium Medium Armor Plating > --- WEAPON ----------- Cooled Particle Cannon Cooled Particle Cannon Cooled Particle Cannon Heavy Neutron Cannon > --- INVENTORY -------- Improved Coolant Injector Improved Trap Scanner Triangulator Experimental Sensor Array Advanced ECM Suite Layered Medium Armor Plating Powered Armor Component Analysis Suite System Restoration Module Cooled Particle Cannon Magnetic Acceleration Cannon Rocket Array Rocket Array Remote Datajack [Rating: 115] Favorites ----------- Power Light Nuclear Core Engine Heavy Deuterium Engine Power Core Light Nuclear Core Reactor Quantum Reactor Propulsion Flexi-carbon Leg Treads Centrium Heavy Treads Leg Flexi-carbon Leg Wheel Wheel Hover Unit Cooled Aerolev Unit Flight Unit Improved Flight Unit Utility Large Storage Unit Device Improved Cooling System Storage Large Storage Unit Processor Advanced Targeting Computer Hackware Hacking Suite Protection Centrium Medium Armor Plating Weapon Cooled Particle Cannon Energy Gun High-powered Shock Rifle Energy Cannon Cooled Particle Cannon Ballistic Gun Light Assault Rifle Ballistic Cannon Magnetic Acceleration Cannon Launcher Vortex Catalyst Activator Special Weapon Improved Remote Datajack Build | -11 -10 -10 -10 -9 -8 -7 -7 -6 -6 -6 -6 -6 -6 -6 -6 -5 -5 -5 -5 ------- Run | Scr Mat Min Exi Min Mat Fac Sto Fac Was Fac Ext Cet Arc Hub Gar Fac Upp Upp War Slots Evolved 11 | . 1 . . . 4 2 . 2 . . . . . . . 2 . . . Power 2 | . . . . . 1 . . . . . . . . . . 1 . . . Propulsion 2 | . . . . . 1 1 . . . . . . . . . . . . . Utility 5 | . 1 . . . . 1 . 2 . . . . . . . 1 . . . Weapon 2 | . . . . . 2 . . . . . . . . . . . . . . Parts Attached 331 | 8 6 12 1 3 23 31 31 19 7 17 15 10 2 21 8 67 19 9 22 Power 43 | 1 1 2 . . 5 7 2 2 1 3 1 3 . . 1 5 3 2 4 Engine 26 | 1 1 2 . . 5 6 2 1 . 2 1 1 . . . . 2 . 2 Core 13 | . . . . . . 1 . 1 . . . . . . 1 5 1 2 2 Reactor 4 | . . . . . . . . . 1 1 . 2 . . . . . . . Propulsion 59 | 2 . 5 . 1 9 3 9 3 2 1 1 3 2 3 . 7 4 1 3 Treads 9 | 2 . . . . . . . . . . . 1 2 3 . 1 . . . Leg 16 | . . 2 . . . . . . . . . . . . . 6 4 1 3 Wheel 8 | . . 3 . 1 4 . . . . . . . . . . . . . . Hover 23 | . . . . . 3 3 8 3 2 1 1 2 . . . . . . . Flight 3 | . . . . . 2 . 1 . . . . . . . . . . . . Utility 164 | 3 3 2 1 1 3 15 15 11 4 9 10 4 . 14 3 43 11 5 7 Device 106 | . . . . 1 1 13 12 7 2 2 6 1 . 8 2 34 9 5 3 Storage 11 | 1 3 1 1 . . . 3 . . 1 . . . 1 . . . . . Processor 6 | 1 . . . . 1 . . 2 . . . . . . . 1 1 . . Hackware 1 | . . . . . 1 . . . . . . . . . . . . . . Protection 40 | 1 . 1 . . . 2 . 2 2 6 4 3 . 5 1 8 1 . 4 Artifact . | . . . . . . . . . . . . . . . . . . . . Weapon 65 | 2 2 3 . 1 6 6 5 3 . 4 3 . . 4 4 12 1 1 8 Energy Gun 4 | 1 . . . . . 2 . . . . . . . . . . . 1 . Energy Cannon 38 | . . 1 . . 3 . 5 2 . 4 3 . . 3 2 10 1 . 4 Ballistic Gun 10 | 1 2 2 . 1 2 1 . 1 . . . . . . . . . . . Ballistic Cannon 6 | . . . . . 1 2 . . . . . . . . . 1 . . 2 Launcher 3 | . . . . . . . . . . . . . . . 2 . . . 1 Special Weapon 4 | . . . . . . 1 . . . . . . . 1 . 1 . . 1 Impact Weapon . | . . . . . . . . . . . . . . . . . . . . Slashing Weapon . | . . . . . . . . . . . . . . . . . . . . Piercing Weapon . | . . . . . . . . . . . . . . . . . . . . Special Melee Weapon . | . . . . . . . . . . . . . . . . . . . . Unidentified Prototypes 5 | . . . . . . . . . . . . . . . . 1 . . 4 Parts Lost 26 | . . 7 . . . . 1 . . . . 1 . . . 5 2 . 10 Power 7 | . . 1 . . . . . . . . . . . . . . 1 . 5 Propulsion 5 | . . 2 . . . . 1 . . . . 1 . . . . . . 1 Utility 5 | . . 2 . . . . . . . . . . . . . 1 1 . 1 Weapon 9 | . . 2 . . . . . . . . . . . . . 4 . . 3 Highest Loss Streak 10 | . . 6 . . . . 1 . . . . 1 . . . 2 1 . 10 To Critical Strikes 1 | . . . . . . . . . . . . 1 . . . . . . . Average Slot Usage (%) 93 | . 100 85 87 90 97 99 98 99 93 91 92 82 90 92 93 94 96 93 86 Engine 4 | . 12 11 12 12 16 11 7 5 6 6 6 9 . . . . 4 . . Core 6 | . . . . . . 2 7 6 4 . . . . . 1 14 11 15 13 Reactor 2 | . . . . . . . . . 1 6 6 2 12 12 10 1 . . . Treads 3 | . 25 2 . . . . . . . . . 5 15 17 18 7 . . . Leg 6 | . . 14 . . . . . . . . . . . . . 11 22 22 20 Wheel 1 | . . 7 25 25 22 . . . . . . . . . . . . . . Hover 8 | . . . . . 2 28 27 25 18 17 18 2 . . . . . . . Device 12 | . . . . 3 5 8 14 11 12 10 10 11 12 11 12 20 17 16 15 Storage 6 | . 12 12 12 12 8 7 7 6 6 6 6 6 6 6 6 5 5 5 5 Processor 3 | . 12 8 . . 2 5 . 6 6 6 6 6 6 5 . . 3 5 5 Protection 10 | . 12 11 12 12 4 4 7 11 12 13 13 12 12 13 17 11 8 5 5 Energy Cannon 16 | . . 8 . . 7 7 16 19 25 23 24 25 25 24 22 16 15 11 11 Ballistic Gun 3 | . 14 6 25 25 21 9 10 4 . . . . . . . . . . . Ballistic Cannon 1 | . . . . . 1 8 . . . . . . . . . 2 5 5 2 Naked Turns . | . . . . . . . . . . . . . . . . . . . . Heaviest Build 125 | 9 24 24 16 18 34 59 78 90 93 97 100 105 105 111 114 125 106 106 112 Greatest Support 138 | 40 40 40 20 20 30 36 34 36 38 38 38 80 126 131 128 138 74 69 69 Greatest Overweight (x) 5 | . . 5 . . 3 1 3 2 2 3 2 5 1 . . 5 1 1 2 Average Overweight (x) . | . . . . . . . 1 2 2 2 2 1 . . . . 1 1 1 Largest Inventory Capacity 25 | 10 25 10 10 10 10 10 15 15 15 15 15 15 15 15 15 15 15 15 15 Average Capacity 13 | 5 10 10 10 10 10 10 11 15 15 15 15 15 15 15 15 15 15 15 15 Most Carried 15 | 5 10 6 8 10 10 10 12 13 14 15 15 15 13 15 14 15 15 15 15 Average Carried 11 | 3 6 1 6 7 9 9 9 10 12 13 14 14 12 13 13 11 13 13 13 Final Capacity 15 | 5 10 10 10 10 10 10 15 15 15 15 15 15 15 15 15 15 15 15 15 Final Carried 15 | 4 4 6 7 10 10 10 11 10 13 15 15 12 12 14 13 11 14 14 11 Class Distribution -------------------- 28% | Scavenger-Tank 21% | Hacker-Tank 12% | Scavenger-Gunner 11% | Hacker-Skirmisher 8% | Scavenger-Mutant 7% | Hacker-Mutant 5% | Generator-Tank 3% | Scavenger-Skirmisher Dominant Class ---------------- Hacker-Mutant | -10/Materials Hacker-Mutant | -10/Mines Scavenger-Mutant | -10/Exiles Scavenger-Mutant | -9/Mines Scavenger-Skirmisher | -8/Materials Hacker-Skirmisher | -7/Factory Hacker-Skirmisher | -7/Storage Hacker-Tank | -6/Factory Hacker-Tank | -6/Waste Hacker-Tank | -6/Factory Hacker-Tank | -6/Extension Scavenger-Tank | -6/Cetus Scavenger-Tank | -6/Archives Scavenger-Tank | -6/Hub_04(d) Scavenger-Tank | -6/Garrison Scavenger-Tank | -5/Factory Scavenger-Tank | -5/Upper Caves Scavenger-Gunner | -5/Upper Caves Scavenger-Gunner | -5/Warlord Resources | -11 -10 -10 -10 -9 -8 -7 -7 -6 -6 -6 -6 -6 -6 -6 -6 -5 -5 -5 -5 ----------- Run | Scr Mat Min Exi Min Mat Fac Sto Fac Was Fac Ext Cet Arc Hub Gar Fac Upp Upp War Matter Collected 5369 | 183 161 170 . 52 139 925 613 338 83 119 232 112 . 359 81 1015 466 156 165 Remotely . | . . . . . . . . . . . . . . . . . . . . Salvage Created 12377 | . 307 68 . 47 241 674 1122 1070 . 379 1288 639 163 2475 507 2152 880 234 131 Parts 585 | . 20 . . 6 19 37 63 46 . 24 53 25 5 113 18 101 31 17 7 Haulers Intercepted 10 | . 1 . . . . . 3 . . . . . . 5 . 1 . . . Recyclers Shooed 4 | . . . . . . . . 2 . . 1 . . . . 1 . . . Parts Field Recycled . | . . . . . . . . . . . . . . . . . . . . Retrieved Matter . | . . . . . . . . . . . . . . . . . . . . Parts Self-Destructed . | . . . . . . . . . . . . . . . . . . . . Prevented . | . . . . . . . . . . . . . . . . . . . . Kills | -11 -10 -10 -10 -9 -8 -7 -7 -6 -6 -6 -6 -6 -6 -6 -6 -5 -5 -5 -5 ------- Run | Scr Mat Min Exi Min Mat Fac Sto Fac Was Fac Ext Cet Arc Hub Gar Fac Upp Upp War Combat Hostiles Destroyed 202 | . 5 5 . 3 4 12 16 21 . 5 15 8 2 28 10 37 18 6 7 Guns 27 | . 5 4 . 3 2 7 4 2 . . . . . . . . . . . Cannons 163 | . . 1 . . 2 5 11 18 . 5 14 7 2 26 10 35 17 6 4 AOE 4 | . . . . . . . . . . . . . . . . 1 . . 3 Classes Destroyed 18 | . 5 1 . 1 1 2 3 2 . 1 . 1 . . 1 . . . . Worker 9 | . 1 . . . 1 1 1 1 . . . . . 2 . 2 . . . Builder 10 | . . . . . . . . 1 . 1 2 . . 4 . 2 . . . Tunneler 1 | . 1 . . . . . . . . . . . . . . . . . . Hauler 10 | . 1 . . . . . 3 . . . . . . 5 . 1 . . . Recycler 3 | . . . . . . 1 . . . . 2 . . . . . . . . Carrier 2 | . . . . . . . . . . . . 2 . . . . . . . Mechanic 1 | . . . . . . . . 1 . . . . . . . . . . . Operator 5 | . . . . . . . 1 1 . . 2 . . 1 . . . . . Watcher 23 | . 1 . . . 3 2 . . . 1 2 1 . 5 . 8 . . . Swarmer 39 | . . . . 3 2 3 . 6 . . 3 4 . 2 2 6 5 3 . Grunt 60 | . 5 . . . . 3 3 8 . . 3 . . 12 5 9 8 3 1 Brawler 2 | . . . . . . . . . . . . . . . 2 . . . . Duelist 2 | . . . . . . . 1 . . . . . . . 1 . . . . Sentry 37 | . . . . . 2 4 7 . . 3 5 . 2 9 . 3 2 . . Hunter 14 | . . . . . . . 1 3 . . 2 . . 2 . 2 2 . 2 Programmer 35 | . . . . . . 2 4 4 . 1 . . . 3 . 17 1 . 3 Behemoth 3 | . . . . . . . . . . 1 2 . . . . . . . . Cetus Guard 4 | . . . . . . . . . . . . 4 . . . . . . . Assembled 5 | . . 5 . . . . . . . . . . . . . . . . . Bouncer 1 | . . . . . . . . . . . . . . . . . . . 1 Best Kill Streak 7 | . 3 4 . 3 3 4 4 3 . 2 4 5 1 5 3 6 7 3 2 Combat Bots Only 7 | . 2 4 . 3 2 3 3 3 . 1 3 4 1 3 3 6 7 3 2 Max Kills in Single Turn 3 | . 1 1 . 2 2 1 2 2 . 2 1 2 1 2 1 3 1 1 2 Gunslinging 1 | . . . . 1 . . . . . . . . . . . . . . . Exploded 2 | . . . . . . . . . . . . . . . . 1 . . 2 Melee . | . . . . . . . . . . . . . . . . . . . . Uniques/NPCs Destroyed . | . . . . . . . . . . . . . . . . . . . . Combat | -11 -10 -10 -10 -9 -8 -7 -7 -6 -6 -6 -6 -6 -6 -6 -6 -5 -5 -5 -5 -------- Run | Scr Mat Min Exi Min Mat Fac Sto Fac Was Fac Ext Cet Arc Hub Gar Fac Upp Upp War Damage Taken 9965 | . 151 821 . 45 106 476 554 593 . 182 1022 245 . 764 105 1617 1208 294 1782 Core 1391 | . 16 112 . 17 8 44 52 25 . 14 68 6 . 13 . 213 380 112 311 Absorbed by Shields 195 | . . . . . . . . . . . . 85 . . . . . . 110 Reduced by Siege Mode 4 | . . . . . . . . . . . . . . 4 . . . . . Redirected to Shielding 17 | . . 11 . 3 1 2 . . . . . . . . . . . . . Regen/Repaired (Parts) 511 | . . . . . . 17 256 84 . 154 . . . . . . . . . Core Remaining (%) 82 | 100 . . . 42 98 . 86 . . . . . . . 85 . . . . Volleys Fired 472 | 1 23 15 . 6 23 39 33 42 . 8 36 17 4 70 19 78 30 11 17 Largest 4 | 2 2 2 . 2 4 4 4 4 . 4 4 4 4 4 4 4 4 4 4 Hottest 380 | 70 70 60 . 40 160 192 118 240 . 360 360 360 360 360 360 380 273 289 221 Shots Fired 1613 | 2 46 25 . 12 77 118 132 164 . 26 134 68 10 280 74 291 103 25 26 Gun 285 | 2 46 20 . 12 53 61 54 35 . . . . . . . . . . 2 Cannon 1320 | . . 5 . . 24 56 78 129 . 26 134 68 10 280 74 291 103 25 17 Launcher 7 | . . . . . . . . . . . . . . . . . . . 7 Special 1 | . . . . . . 1 . . . . . . . . . . . . . Kinetic 346 | 1 26 20 . 12 54 78 54 35 . . . . . . . 25 30 11 . Thermal 1226 | 1 20 5 . . 23 27 78 129 . 26 134 68 10 280 74 266 72 8 5 Explosive . | . . . . . . . . . . . . . . . . . . . . Electromagnetic 23 | . . . . . . 12 . . . . . . . . . . 1 6 4 Entropic 17 | . . . . . . . . . . . . . . . . . . . 17 Robot Hit Streak 40 | . 10 9 . 10 10 20 25 17 . 26 20 30 11 35 29 40 27 6 10 Robot Miss Streak 6 | . 2 2 . 1 2 6 1 2 . 1 3 2 . 2 1 2 2 1 1 Penetration Max 1 | . . . . . . 1 1 1 . . . . . . . . . . . Secondary Targets 5 | . 1 2 . 2 . . . . . . . . . . . . . . . Max Gunslinging Chain 1 | . 1 1 . 1 . . . . . . . . . . . . . . . Shots Hit Robots 1044 | . 32 20 . 11 45 77 91 93 . 20 92 41 8 164 45 197 72 17 19 Core Hits 421 | . 17 9 . 4 16 34 41 34 . 10 30 17 4 62 18 73 30 10 12 Critical Kills 5 | . . . . . . . 1 2 . . . . . 2 . . . . . Critical Parts Destroyed 2 | . . . . . . . . 2 . . . . . . . . . . . Critical Strikes 17 | . . . . . . 3 1 4 . . . . . 2 . . 1 1 5 Meltdown 5 | . . . . . . . 1 2 . . . . . 2 . . . . . Destroy 2 | . . . . . . . . 2 . . . . . . . . . . . Blast 4 | . . . . . . 3 . . . . . . . . . . 1 . . Corrupt 1 | . . . . . . . . . . . . . . . . . . 1 . Sunder 5 | . . . . . . . . . . . . . . . . . . . 5 Melee Attacks . | . . . . . . . . . . . . . . . . . . . . Impact . | . . . . . . . . . . . . . . . . . . . . Slashing . | . . . . . . . . . . . . . . . . . . . . Piercing . | . . . . . . . . . . . . . . . . . . . . Sneak Attacks . | . . . . . . . . . . . . . . . . . . . . Combat Hostiles . | . . . . . . . . . . . . . . . . . . . . Follow-up Attacks . | . . . . . . . . . . . . . . . . . . . . Damage Inflicted 32878 | . 400 316 . 87 599 1640 2376 2474 . 669 3617 1615 436 5336 1365 7169 2200 551 2028 Guns 2897 | . 350 227 . 87 353 802 738 336 . . . . . . . . . . 4 Cannons 28243 | . . 89 . . 246 838 1638 2138 . 669 3617 1615 436 5336 1365 6862 2200 551 643 Explosions 1738 | . 50 . . . . . . . . . . . . . . 307 . . 1381 Melee . | . . . . . . . . . . . . . . . . . . . . Ramming . | . . . . . . . . . . . . . . . . . . . . Kinetic 4274 | . 162 227 . 87 365 1155 738 336 . . . . . . . 456 469 279 . Thermal 26327 | . 188 89 . . 234 365 1638 2138 . 669 3617 1615 436 5336 1365 6713 1691 112 121 Explosive 50 | . 50 . . . . . . . . . . . . . . . . . . Electromagnetic 372 | . . . . . . 120 . . . . . . . . . . 40 160 52 Impact . | . . . . . . . . . . . . . . . . . . . . Slashing . | . . . . . . . . . . . . . . . . . . . . Piercing . | . . . . . . . . . . . . . . . . . . . . Entropic 1855 | . . . . . . . . . . . . . . . . . . . 1855 Highest Corruption 5 | . . . . . . 2 4 1 1 1 1 1 1 2 2 5 2 . 1 Average Corruption 1 | . . . . . . 1 3 1 1 1 1 1 1 1 1 3 1 . 1 Corruption Purged 13 | . . . . . . . 3 . . . . . . . 2 6 2 . . Corruption Blocked 16 | . . . . . . . . . . . . . . . . . . . 16 Effects 184 | . . . . . . 10 31 1 6 9 12 8 4 22 . 60 19 . 2 Message Errors 41 | . . . . . . 2 6 . 1 2 4 2 . 4 . 15 5 . . Matter Fused 42 | . . . . . . 3 10 . 2 2 2 2 1 4 . 15 1 . . Heat Flow Errors 25 | . . . . . . 1 2 . 1 . 1 1 1 4 . 10 4 . . Energy Discharges 25 | . . . . . . 1 5 . 1 2 1 1 1 5 . 5 2 . 1 Parts Rejected 1 | . . . . . . . . . . . . . . . . 1 . . . Data Loss (minor) 17 | . . . . . . 1 1 . 1 1 1 2 . 1 . 7 1 . 1 Data Loss (major) 14 | . . . . . . 1 2 1 . 1 1 . . 1 . 5 2 . . Misfires 7 | . . . . . . . 2 . . . 2 . . 1 . 1 1 . . Alerts 9 | . . . . . . 1 1 . . 1 . . 1 1 . 1 3 . . Weapon Failures 3 | . . . . . . . 2 . . . . . . 1 . . . . . Overload Shots 152 | . . . . . . . . 2 . 4 43 20 10 36 4 24 6 3 . Effects 11 | . . . . . . . . . . 1 3 . . 3 . 3 1 . . Energy Bleed 4 | . . . . . . . . . . 1 . . . 1 . 1 1 . . Heat Surge 5 | . . . . . . . . . . . 2 . . 1 . 2 . . . Short Circuit 2 | . . . . . . . . . . . 1 . . 1 . . . . . Overflow Damage 1211 | . . . . . . 17 14 105 . . 214 128 . 227 17 303 67 1 118 Projectiles 1017 | . . . . . . 17 14 105 . . 214 128 . 227 17 215 67 1 12 Explosions 194 | . . . . . . . . . . . . . . . . 88 . . 106 Melee . | . . . . . . . . . . . . . . . . . . . . Knockbacks 20 | . . . . . . 9 . . . . . . . . . 4 4 3 . Impact . | . . . . . . . . . . . . . . . . . . . . Kinetic 19 | . . . . . . 8 . . . . . . . . . 4 4 3 . Secondary 1 | . . . . . . 1 . . . . . . . . . . . . . Self-Inflicted Damage 122 | . 64 . . . . . . . . . . . . . . 58 . . . Shots 2 | . 1 . . . . . . . . . . . . . . 1 . . . Rammed . | . . . . . . . . . . . . . . . . . . . . Targets Rammed . | . . . . . . . . . . . . . . . . . . . . Kicked . | . . . . . . . . . . . . . . . . . . . . Crushed . | . . . . . . . . . . . . . . . . . . . . Highest Temperature 1238 | 36 220 88 . . 390 414 193 322 177 258 604 450 240 569 252 1238 855 528 . Average Temperature 156 | 19 56 40 . . 130 146 54 72 90 58 107 166 96 149 56 197 335 318 . Received Heat Transfer 2101 | . 96 80 . . 36 114 192 189 . 54 270 13 . 255 27 216 400 120 39 Effects 102 | . . . . . 3 12 . . . . 8 1 3 11 . 36 17 11 . Shutdowns 23 | . . . . . 1 5 . . . . 3 1 . 4 . 5 . 4 . Energy Bleed 16 | . . . . . . 1 . . . . 3 . . 3 . 5 3 1 . Interference 27 | . . . . . 2 6 . . . . 2 . 3 . . 5 5 4 . Matter Decay 8 | . . . . . . . . . . . . . . 3 . 4 1 . . Short Circuit 10 | . . . . . . . . . . . . . . 1 . 5 3 1 . Damage (minor) 3 | . . . . . . . . . . . . . . . . 1 2 . . Damage (major) 10 | . . . . . . . . . . . . . . . . 10 . . . Damage (core) 5 | . . . . . . . . . . . . . . . . 1 3 1 . Siege Activations 2 | . . . . . . . . . . . . . . 2 . . . . . Total Turns 19 | . . . . . . . . . . . . . . 19 . . . . . Longest Duration 18 | . . . . . . . . . . . . . . 18 . . . . . Robots Corrupted . | . . . . . . . . . . . . . . . . . . . . Combat Hostiles . | . . . . . . . . . . . . . . . . . . . . Parts Fried 2 | . . . . . . 1 . . . . . . . . . . . 1 . Impact Corruptions . | . . . . . . . . . . . . . . . . . . . . Robots Melted 10 | . . . . . . . 1 2 . . 1 1 . 3 . 1 1 . . Combat Hostiles 8 | . . . . . . . 1 1 . . 1 1 . 2 . 1 1 . . Parts Melted 74 | . . . . . 2 . 4 8 . 3 8 4 2 21 1 18 3 . . Heat Transferred 31330 | . 555 185 . . 481 629 2146 2764 . 779 3946 1799 400 6735 1717 6772 2150 124 148 Parts Sabotaged 6 | . . . . . . . . . . . . . . . . . . . 6 Parts Stolen . | . . . . . . . . . . . . . . . . . . . . Parts Stripped . | . . . . . . . . . . . . . . . . . . . . Power Chain Reactions . | . . . . . . . . . . . . . . . . . . . . Missiles Intercepted . | . . . . . . . . . . . . . . . . . . . . Alert | -11 -10 -10 -10 -9 -8 -7 -7 -6 -6 -6 -6 -6 -6 -6 -6 -5 -5 -5 -5 ------- Run | Scr Mat Min Exi Min Mat Fac Sto Fac Was Fac Ext Cet Arc Hub Gar Fac Upp Upp War Peak Influence 566 | . 146 39 . 85 216 293 243 247 37 101 150 364 165 446 566 440 . . . Initial 220 | . . 39 . . . 70 30 22 37 . 2 . 57 39 12 220 . . . Average 86 | . 55 3 . 23 146 83 64 67 31 42 44 122 153 155 300 93 . . . Maximum Alert Level 2 | . . . . . 1 1 1 1 . . . 1 . 2 2 2 . . . Low Security (%) 88 | 100 100 100 . 100 93 89 96 92 100 100 100 72 100 72 28 85 . . . Level 1 9 | . . . . . 6 10 3 7 . . . 27 . 25 32 12 . . . Level 2 1 | . . . . . . . . . . . . . . 1 38 1 . . . Level 3 . | . . . . . . . . . . . . . . . . . . . . Level 4 . | . . . . . . . . . . . . . . . . . . . . Level 5 . | . . . . . . . . . . . . . . . . . . . . High Security . | . . . . . . . . . . . . . . . . . . . . Max Security . | . . . . . . . . . . . . . . . . . . . . Squads Dispatched 50 | . 1 . . . 1 7 7 10 . 3 . 1 . 8 . 12 . . . Investigation 18 | . 1 . . . . 4 2 4 . 2 . 1 . 2 . 2 . . . Extermination 20 | . . . . . . 3 4 2 . 1 . . . 3 . 7 . . . Reinforcement 12 | . . . . . 1 . 1 4 . . . . . 3 . 3 . . . Assault . | . . . . . . . . . . . . . . . . . . . . Garrison . | . . . . . . . . . . . . . . . . . . . . Intercept . | . . . . . . . . . . . . . . . . . . . . Searches Triggered . | . . . . . . . . . . . . . . . . . . . . Construction Impeded 1 | . . . . . . . . 1 . . . . . . . . . . . Haulers Reinforced 3 | . . . . . . . . 2 . . . . . 1 . . . . . Active Scanning Responses . | . . . . . . . . . . . . . . . . . . . . Cargo Convoy Interrupts . | . . . . . . . . . . . . . . . . . . . . Stealth | -11 -10 -10 -10 -9 -8 -7 -7 -6 -6 -6 -6 -6 -6 -6 -6 -5 -5 -5 -5 --------- Run | Scr Mat Min Exi Min Mat Fac Sto Fac Was Fac Ext Cet Arc Hub Gar Fac Upp Upp War Distress Signals 15 | . 1 1 . . 2 1 . . . . 2 2 . 5 . . . . 1 Communications Jammed 3 | . . . . . . . . . . . . . . . . 3 . . . Distress Signals 1 | . . . . . . . . . . . . . . . . 1 . . . Times Spotted 345 | . 14 18 . 3 12 23 27 27 . 10 26 22 1 49 17 55 19 6 16 Peak Tracking Total 7 | . 3 7 . 3 3 3 4 5 . 3 4 5 1 7 5 3 4 3 7 Tactical Retreats 26 | . 1 . . . . 3 3 1 . . 5 . . 6 4 2 . . 1 Traps | -11 -10 -10 -10 -9 -8 -7 -7 -6 -6 -6 -6 -6 -6 -6 -6 -5 -5 -5 -5 ------- Run | Scr Mat Min Exi Min Mat Fac Sto Fac Was Fac Ext Cet Arc Hub Gar Fac Upp Upp War Traps Triggered 15 | . . . . . . 1 2 1 . 6 1 . . 4 . . . . . Indirectly . | . . . . . . . . . . . . . . . . . . . . Trap Hack Attempts . | . . . . . . . . . . . . . . . . . . . . Triggered . | . . . . . . . . . . . . . . . . . . . . Disarmed 5 | . 5 . . . . . . . . . . . . . . . . . . Reprogrammed 1 | . . . . . . . 1 . . . . . . . . . . . . Reused 6 | . . . . . . 4 2 . . . . . . . . . . . . Traps Extracted . | . . . . . . . . . . . . . . . . . . . . Installed 5 | . . . . . . 4 1 . . . . . . . . . . . . Triggered 33 | . . . . . . 4 2 . . . . . . . . . 2 . 25 Most Traps Carried 5 | . . . . 5 5 5 1 . . . . . . . . . . . . Machines | -11 -10 -10 -10 -9 -8 -7 -7 -6 -6 -6 -6 -6 -6 -6 -6 -5 -5 -5 -5 ---------- Run | Scr Mat Min Exi Min Mat Fac Sto Fac Was Fac Ext Cet Arc Hub Gar Fac Upp Upp War Machines Disabled 21 | . 2 . . . . 2 2 . . . 1 3 . 2 2 4 2 . 1 Max in Single Turn 2 | . 2 . . . . 1 1 . . . 1 1 . 1 1 1 1 . 1 Garrison Access 1 | . . . . . . . . . . . . . . . . 1 . . . Garrison Relay 1 | . . . . . . . . . . . . . . . 1 . . . . Machines Sabotaged . | . . . . . . . . . . . . . . . . . . . . Garrisons Compromised . | . . . . . . . . . . . . . . . . . . . . Overloaded Fab Kills . | . . . . . . . . . . . . . . . . . . . . Hacking | -11 -10 -10 -10 -9 -8 -7 -7 -6 -6 -6 -6 -6 -6 -6 -6 -5 -5 -5 -5 --------- Run | Scr Mat Min Exi Min Mat Fac Sto Fac Was Fac Ext Cet Arc Hub Gar Fac Upp Upp War Machines Accessed 94 | . 6 . 4 . 2 7 11 8 . 4 10 2 1 14 . 15 2 . 8 Terminals 53 | . 4 . . . 2 2 7 4 . . 10 2 . 13 . 8 1 . . Fabricators 7 | . . . . . . 1 . 3 . 2 . . . . . 1 . . . Repair Stations 6 | . . . . . . 1 2 1 . 1 . . . . . 1 . . . Recycling Units 8 | . 2 . . . . 1 2 . . . . . . . . 3 . . . Scanalyzers 3 | . . . . . . 2 . . . 1 . . . . . . . . . Garrison Access 3 | . . . . . . . . . . . . . . 1 . 2 . . . Total Hacks 325 | . 34 . 49 . 8 18 33 22 . 15 20 6 25 41 . 34 7 . 13 Successful 277 | . 31 . 49 . 5 15 29 17 . 12 13 5 25 33 . 23 7 . 13 Failed 48 | . 3 . . . 3 3 4 5 . 3 7 1 . 8 . 11 . . . Catastrophic 3 | . . . . . . . . . . . 1 . . 1 . 1 . . . Database Lockouts . | . . . . . . . . . . . . . . . . . . . . Manual 17 | . . . 1 . . . 1 . . . . 4 7 . . 2 . . 2 Terminals 159 | . 26 . . . 8 5 20 10 . . 20 6 . 39 . 19 6 . . Fabricators 18 | . . . . . . 2 . 8 . 6 . . . . . 2 . . . Repair Stations 21 | . . . . . . 2 9 4 . 4 . . . . . 2 . . . Recycling Units 21 | . 8 . . . . 2 4 . . . . . . . . 7 . . . Scanalyzers 12 | . . . . . . 7 . . . 5 . . . . . . . . . Garrison Access 6 | . . . . . . . . . . . . . . 2 . 4 . . . Terminal Hacks 211 | . 23 . 49 . 5 4 17 7 . . 13 5 25 31 . 12 7 . 13 Record 134 | . 13 . 49 . 1 2 5 1 . . 2 4 25 16 . 3 6 . 7 Part Schematic 1 | . . . . . . . . . . . 1 . . . . . . . . Robot Schematic 4 | . . . . . . 1 1 . . . 1 . . 1 . . . . . Robot Analysis 9 | . . . . . 2 1 1 1 . . . . . 2 . 2 . . . Prototype ID Bank 13 | . 2 . . . 1 . . . . . 1 . . 2 . 2 . . 5 Open Door 9 | . . . . . . . 2 . . . 4 1 . . . . 1 . 1 Open DSF 2 | . . . . . . . . 1 . . . . . . . 1 . . . Level Access Points 1 | . . . . . . . 1 . . . . . . . . . . . . Branch Access Points 5 | . . . . . . . 1 1 . . 1 . . 1 . 1 . . . Emergency Access Points 5 | . . . . . . . . 1 . . . . . 4 . . . . . Terminal Index 1 | . . . . . . . 1 . . . . . . . . . . . . Repair Station Index 2 | . . . . . . . . . . . 1 . . 1 . . . . . Recycling Unit Index 1 | . 1 . . . . . . . . . . . . . . . . . . Scanalyzer Index 1 | . . . . . . . . . . . . . . . . 1 . . . Alert Level 1 | . 1 . . . . . . . . . . . . . . . . . . Locate Traps 7 | . 1 . . . . . 2 1 . . 1 . . 1 . 1 . . . Disarm Traps 1 | . 1 . . . . . . . . . . . . . . . . . . Reprogram Traps 2 | . 1 . . . . . 1 . . . . . . . . . . . . Dispatch Records 1 | . . . . . 1 . . . . . . . . . . . . . . Maintenance Status 2 | . 2 . . . . . . . . . . . . . . . . . . Recall Reinforcements 1 | . . . . . . . . . . . . . . 1 . . . . . Hauler Manifests 2 | . . . . . . . 1 1 . . . . . . . . . . . Registered Components 1 | . 1 . . . . . . . . . . . . . . . . . . Zone Layout 5 | . . . . . . . 1 . . . 1 . . 2 . 1 . . . Fabricator Hacks 16 | . . . . . . 2 . 6 . 6 . . . . . 2 . . . Network Status 3 | . . . . . . . . 1 . 2 . . . . . . . . . Load Schematic 7 | . . . . . . 1 . 3 . 2 . . . . . 1 . . . Build 6 | . . . . . . 1 . 2 . 2 . . . . . 1 . . . Repair Station Hacks 18 | . . . . . . 2 8 4 . 2 . . . . . 2 . . . Scan Component 9 | . . . . . . 1 4 2 . 1 . . . . . 1 . . . Repair 9 | . . . . . . 1 4 2 . 1 . . . . . 1 . . . Recycling Unit Hacks 19 | . 8 . . . . 1 4 . . . . . . . . 6 . . . Recycle Component 4 | . 4 . . . . . . . . . . . . . . . . . . Process 2 | . 1 . . . . . 1 . . . . . . . . . . . . Report Inventory 7 | . 2 . . . . . 2 . . . . . . . . 3 . . . Retrieve Matter 3 | . 1 . . . . 1 1 . . . . . . . . . . . . Retrieve Components 3 | . . . . . . . . . . . . . . . . 3 . . . Scanalyzer 10 | . . . . . . 6 . . . 4 . . . . . . . . . Insert Component 4 | . . . . . . 3 . . . 1 . . . . . . . . . Analyze 6 | . . . . . . 3 . . . 3 . . . . . . . . . Garrison Access Hacks 3 | . . . . . . . . . . . . . . 2 . 1 . . . Unlock Access 1 | . . . . . . . . . . . . . . 1 . . . . . Seal Access 1 | . . . . . . . . . . . . . . . . 1 . . . Coupler Status 1 | . . . . . . . . . . . . . . 1 . . . . . Unauthorized Hacks . | . . . . . . . . . . . . . . . . . . . . Terminals . | . . . . . . . . . . . . . . . . . . . . Fabricators . | . . . . . . . . . . . . . . . . . . . . Repair Stations . | . . . . . . . . . . . . . . . . . . . . Recycling Units . | . . . . . . . . . . . . . . . . . . . . Scanalyzers . | . . . . . . . . . . . . . . . . . . . . Garrison Access . | . . . . . . . . . . . . . . . . . . . . Data Cores Recovered 6 | . . . . . . 1 1 1 . . 2 . . 1 . . . . . Used . | . . . . . . . . . . . . . . . . . . . . Hacking Detections 69 | . 6 . . . 2 6 9 8 . 3 8 3 . 12 . 11 1 . . Full Trace Events 18 | . 2 . . . 1 3 1 4 . 2 . 1 . 2 . 2 . . . Feedback Events 1 | . . . . . . . 1 . . . . . . . . . . . . Corruption 1 | . . . . . . . 1 . . . . . . . . . . . . Feedback Blocked . | . . . . . . . . . . . . . . . . . . . . Robot Schematics Acquired 4 | . . . . . . 1 1 . . . 1 . . 1 . . . . . Robots Built 12 | . . . . . . 3 . 6 . 3 . . . . . . . . . Authchips . | . . . . . . . . . . . . . . . . . . . . Time 239 | . . . . . . 58 . 82 . 99 . . . . . . . . . Total Robot Build Rating 27 | . . . . . . 9 . 12 . 6 . . . . . . . . . Part Schematics Acquired 5 | . . . . . . 3 . . . 1 1 . . . . . . . . Parts Built 2 | . . . . . . . . . . 1 . . . . . 1 . . . Authchips . | . . . . . . . . . . . . . . . . . . . . Time 201 | . . . . . . . . . . 134 . . . . . 67 . . . Total Part Build Rating 8 | . . . . . . . . . . 4 . . . . . 4 . . . Parts Repaired 8 | . . . . . . 1 4 2 . 1 . . . . . . . . . Time 589 | . . . . . . 22 239 170 . 22 . . . . . 136 . . . Parts Recycled 4 | . 4 . . . . . . . . . . . . . . . . . . Recycled Matter 493 | . 379 . . . . . 114 . . . . . . . . . . . . Retrieved Matter 522 | . 379 . . . . 29 114 . . . . . . . . . . . . Retrieved Components 18 | . . . . . . . . . . . . . . . . 18 . . . Parts Scanalyzed 4 | . . . . . . 3 . . . 1 . . . . . . . . . Part Schematics Acquired 4 | . . . . . . 3 . . . 1 . . . . . . . . . Parts Damaged . | . . . . . . . . . . . . . . . . . . . . Bothacking | -11 -10 -10 -10 -9 -8 -7 -7 -6 -6 -6 -6 -6 -6 -6 -6 -5 -5 -5 -5 ------------ Run | Scr Mat Min Exi Min Mat Fac Sto Fac Was Fac Ext Cet Arc Hub Gar Fac Upp Upp War Used RIF Installer . | . . . . . . . . . . . . . . . . . . . . Robots Hacked 1 | . . . . . . 1 . . . . . . . . . . . . . Non-combat . | . . . . . . . . . . . . . . . . . . . . Combat 1 | . . . . . . 1 . . . . . . . . . . . . . Robot Hacks Applied 1 | . . . . . . 1 . . . . . . . . . . . . . parse_system 1 | . . . . . . 1 . . . . . . . . . . . . . Relay Couplers Released 5 | . . . . . . . . . . . . . . . 5 . . . . Machine Destruction 5 | . . . . . . . . . . . . . . . 5 . . . . Fabnet Peak Effective % . | . . . . . . . . . . . . . . . . . . . . Robots Rewired . | . . . . . . . . . . . . . . . . . . . . Allies Hacked 3 | . . . . . . 3 . . . . . . . . . . . . . Hacks Repelled . | . . . . . . . . . . . . . . . . . . . . Allies | -11 -10 -10 -10 -9 -8 -7 -7 -6 -6 -6 -6 -6 -6 -6 -6 -5 -5 -5 -5 -------- Run | Scr Mat Min Exi Min Mat Fac Sto Fac Was Fac Ext Cet Arc Hub Gar Fac Upp Upp War Total Allies 22 | . . . . . . 3 . 6 2 3 4 4 . . . . . . . Largest Group 7 | . . . . . . 3 . 3 4 7 3 4 3 2 . . . . . Highest-Rated Group 431 | . . . . . . 48 . 54 85 139 190 431 322 185 . . . . . Highest-Rated Ally 159 | . . . . . . 16 . 18 31 31 159 159 137 96 . . . . . Total Orders 22 | . . . . . . 4 2 7 1 1 3 3 . . . 1 . . . STAY 3 | . . . . . . . . 3 . . . . . . . . . . . FOLLOW 4 | . . . . . . 3 . 1 . . . . . . . . . . . GUARD 6 | . . . . . . 1 . 1 1 1 . 2 . . . . . . . AID 2 | . . . . . . . . 1 . . . 1 . . . . . . . EXPLORE 7 | . . . . . . . 2 1 . . 3 . . . . 1 . . . Ally Attacks 207 | . . . . . . 24 . 18 . 18 8 113 7 19 . . . . . Total Damage 5542 | . . . . . . 330 . 511 . 298 149 3430 336 488 . . . . . Kills 32 | . . . . . . 3 . 4 . 4 1 15 2 3 . . . . . Allies Corrupted 2 | . . . . . . . 2 . . . . . . . . . . . . Allies Melted . | . . . . . . . . . . . . . . . . . . . . Intel | -11 -10 -10 -10 -9 -8 -7 -7 -6 -6 -6 -6 -6 -6 -6 -6 -5 -5 -5 -5 ------- Run | Scr Mat Min Exi Min Mat Fac Sto Fac Was Fac Ext Cet Arc Hub Gar Fac Upp Upp War Robot Analysis Total 9 | . . . . . 2 1 1 1 . . . . . 2 . 2 . . . Derelict Logs Recovered 5 | . . 1 . . . . . . . . . . . . . . 3 1 . Drone Launches 23 | . . . . . . . 14 2 . . 4 . . . . 3 . . . Drone Recoveries 4 | . . . . . . . . . . . 3 . . . . 1 . . . Exploration | -11 -10 -10 -10 -9 -8 -7 -7 -6 -6 -6 -6 -6 -6 -6 -6 -5 -5 -5 -5 ------------- Run | Scr Mat Min Exi Min Mat Fac Sto Fac Was Fac Ext Cet Arc Hub Gar Fac Upp Upp War Turns Passed 27404 | 81 637 588 726 705 398 1778 1832 1895 470 1366 2444 1082 317 2040 605 4680 2614 1304 1842 Spaces Moved 14791 | 50 346 448 903 787 300 1051 1042 870 307 753 1411 345 172 1028 270 1919 1261 612 916 Core 28 | 17 . 11 . . . . . . . . . . . . . . . . . Treads 3042 | 33 346 26 . . . . . . . . . 292 172 1028 270 875 . . . Legs 4105 | . . 272 . . . . . . . . . . . . . 1044 1261 612 916 Wheels 2107 | . . 139 903 787 278 . . . . . . . . . . . . . . Hover 5509 | . . . . . 22 1051 1042 870 307 753 1411 53 . . . . . . . Flight . | . . . . . . . . . . . . . . . . . . . . Fastest Speed 48 | 50 160 80 80 80 80 48 108 153 145 95 145 154 160 160 160 120 190 190 120 Average Speed 149 | 122 160 114 80 80 83 99 135 154 145 145 151 232 173 160 160 178 190 190 190 Slowest Speed 470 | 160 160 300 80 80 250 108 232 159 153 201 154 326 240 160 160 470 190 190 260 Overloaded Moves . | . . . . . . . . . . . . . . . . . . . . Propulsion Burnouts . | . . . . . . . . . . . . . . . . . . . . Robots Hopped . | . . . . . . . . . . . . . . . . . . . . Cave-ins Triggered . | . . . . . . . . . . . . . . . . . . . . Exploration Rate (%) 61 | 4 58 84 92 94 30 15 66 20 96 20 85 88 95 93 40 37 94 59 65 Regions Visited 19 Branch Regions 11 Pre-discovered Areas 3 | . . 1 1 . . . . . . . . . . . . . 1 . . Known Exits Taken 16 | 1 1 1 1 1 1 1 1 . . 1 1 1 1 1 . 1 1 1 . Unknown Exits Taken . | . . . . . . . . . . . . . . . . . . . . Scrap Searched 6 | . . . . 1 . . . . . . . . . . . . 3 2 . Spaces Dug 9 | . . . . . . . . 1 . . . . . 8 . . . . . Terrain Destroyed 291 | . 17 . . . . . 17 15 . 2 4 7 1 29 . 67 14 4 114 Melee . | . . . . . . . . . . . . . . . . . . . . Projectile 130 | . . . . . . . 17 15 . 2 4 7 1 29 . 35 14 4 2 AOE 161 | . 17 . . . . . . . . . . . . . . 32 . . 112 Terrain Rammed . | . . . . . . . . . . . . . . . . . . . . Walls Destroyed . | . . . . . . . . . . . . . . . . . . . . Machines Disabled . | . . . . . . . . . . . . . . . . . . . . Actions | -11 -10 -10 -10 -9 -8 -7 -7 -6 -6 -6 -6 -6 -6 -6 -6 -5 -5 -5 -5 --------- Run | Scr Mat Min Exi Min Mat Fac Sto Fac Was Fac Ext Cet Arc Hub Gar Fac Upp Upp War Total 19038 | 66 389 503 906 854 401 1701 1393 1318 330 1009 1637 588 183 1247 394 2980 1412 733 994 Wait 2946 | . . 7 . 44 18 529 210 361 5 206 145 187 4 102 95 850 72 92 19 Move 14773 | 49 345 447 902 786 299 1050 1041 870 306 752 1410 344 171 1027 269 1918 1260 611 916 Hop . | . . . . . . . . . . . . . . . . . . . . Pick Up 265 | 8 10 15 2 9 20 17 33 15 6 18 9 12 2 17 1 39 15 5 12 Fast Attach 18 | 3 . . . 1 1 2 3 . . 1 1 1 . 1 . 1 2 . 1 Attach 82 | 4 1 7 . . 4 2 2 4 1 8 2 2 2 7 1 14 6 1 14 Detach 5 | . . . . . . . . . 2 . . . . . . . 1 . 2 Swap 231 | 1 5 5 1 2 18 27 26 15 6 8 12 7 . 13 7 52 11 8 7 Drop 208 | . 5 7 1 6 18 18 37 11 4 8 9 18 . 10 2 28 15 5 6 Fire 472 | 1 23 15 . 6 23 39 33 42 . 8 36 17 4 70 19 78 30 11 17 Melee . | . . . . . . . . . . . . . . . . . . . . Ram . | . . . . . . . . . . . . . . . . . . . . Kick . | . . . . . . . . . . . . . . . . . . . . Crush . | . . . . . . . . . . . . . . . . . . . . Escape Stasis 26 | . . . . . . 13 . . . . 13 . . . . . . . . Rewire . | . . . . . . . . . . . . . . . . . . . . Trap 5 | . . . . . . 4 1 . . . . . . . . . . . . Miscellaneous 7 | . . . . . . . 7 . . . . . . . . . . . . Route ------- -11/Scrapyard -10/Materials (discovered 3 exits: *Mat / *Min x2) -10/Mines (discovered 3 exits: *Mat x2 / *Exi) -10/Exiles (discovered 2 exits: *Min x2) -9/Mines (discovered 2 exits: *Mat x2) -8/Materials -7/Factory -7/Storage (discovered 2 exits: *Fac / Rec) -6/Factory (discovered 4 exits: Low x2 / Ext x2) -6/Waste -6/Factory -6/Extension (discovered 3 exits: *Fac x2 / *Cet) -6/Cetus (discovered 2 exits: *Fac / *Arc) -6/Archives (discovered 3 exits: *Fac / *Hub x2) -6/Hub_04(d) (discovered 4 exits: *Fac x3 / Gar) -6/Garrison -5/Factory (discovered 3 exits: *Fac / *Upp x2) -5/Upper Caves -5/Upper Caves -5/Warlord (discovered 1 exit: *Pro) History --------- Turn | Location | Event 12 | -11/Scrapyard | Identified exit to Materials 12 | -11/Scrapyard | Discovered exit to Materials (range 16) 82 | -11/Scrapyard | Entered Materials 82 | -10/Materials | Evolved 1 slot: Utility x1 302 | -10/Materials | Build established: Hacker-Mutant 349 | -10/Materials | Identified exit to Mines 349 | -10/Materials | Discovered exit to Mines (range 11) 556 | -10/Materials | Identified exit to Materials 556 | -10/Materials | Discovered exit to Materials (range 10) 690 | -10/Materials | Discovered exit to Mines (range 11) 719 | -10/Materials | Entered Mines 720 | -10/Mines | Assembled infested the area 724 | -10/Mines | Met a Derelict bent on vengeance 789 | -10/Mines | Core integrity fell below 50% 819 | -10/Mines | Lost 6 parts (1p2n1u2w) 883 | -10/Mines | Discovered exit to Materials (range 8) 1235 | -10/Mines | Discovered exit to Materials (range 4) 1241 | -10/Mines | Learned location of Zion (-7) 1303 | -10/Mines | Deemed a non-threat by the Exiles lab entrance 1304 | -10/Mines | Identified exit to Exiles 1304 | -10/Mines | Discovered exit to Exiles (range 5) 1307 | -10/Mines | Entered Exiles 1331 | -10/Exiles | Met 8R-AWN 1344 | -10/Exiles | Met EX-HEX 1392 | -10/Exiles | Met EX-DEC 1472 | -10/Exiles | Identified exit to Mines 1472 | -10/Exiles | Discovered exit to Mines (range 14) 1488 | -10/Exiles | Build established: Scavenger-Mutant 1540 | -10/Exiles | Met EX-BIN 1620 | -10/Exiles | Aligned with FarCom system 1621 | -10/Exiles | Given EX-Vault access code 1706 | -10/Exiles | Visited The Gauntlet 1852 | -10/Exiles | Discovered exit to Mines (range 15) 2033 | -10/Exiles | Entered Mines 2034 | -9/Mines | Identified exit to Materials 2034 | -9/Mines | Discovered exit to Materials (range 13) 2346 | -9/Mines | Found a damaged Exp. Sensor Array with a note attached 2348 | -9/Mines | Found Prototype Device 2410 | -9/Mines | Found a hidden stash of uninstalled traps 2560 | -9/Mines | Discovered exit to Materials (range 8) 2738 | -9/Mines | Entered Materials 2738 | -8/Materials | Evolved 4 slots: Power x1, Propulsion x1, Weapon x2 3082 | -8/Materials | Identified exit to Factory 3082 | -8/Materials | Discovered exit to Factory (range 15) 3136 | -8/Materials | Entered Factory 3136 | -7/Factory | Evolved 2 slots: Propulsion x1, Utility x1 3251 | -7/Factory | Repaired Imp. Deuterium Engine 3605 | -7/Factory | Build established: Hacker-Skirmisher 3797 | -7/Factory | Identified Exp. Sensor Array 3846 | -7/Factory | Identified exit to Storage 3846 | -7/Factory | Discovered exit to Storage (range 16) 4305 | -7/Factory | Found Powered Armor 4403 | -7/Factory | Build established: Hacker-Mutant 4476 | -7/Factory | Fabricated G-47 Trooper (x3) 4739 | -7/Factory | Build established: Hacker-Skirmisher 4914 | -7/Factory | Entered Storage 5633 | -7/Storage | Identified exit to Recycling 6073 | -7/Storage | Repaired Lrg. Storage Unit 6073 | -7/Storage | Repaired Corrupted Cld. Aerolev Unit 6111 | -7/Storage | Repaired Lrg. Storage Unit 6173 | -7/Storage | Repaired Corrupted Cld. Aerolev Unit 6676 | -7/Storage | Identified exit to Factory 6746 | -7/Storage | Entered Factory 6746 | -6/Factory | Evolved 2 slots: Utility x2 7048 | -6/Factory | Repaired Hvy. Deuterium Engine 7155 | -6/Factory | Repaired Corrupted Cld. Aerolev Unit? 7293 | -6/Factory | Build established: Hacker-Tank 8048 | -6/Factory | Identified exit to Lower Caves 8048 | -6/Factory | Identified exit to Extension 8233 | -6/Factory | Fabricated L-31 Rogue? 8576 | -6/Factory | Fabricated L-31 Rogue (x3) 8641 | -6/Factory | Sucked down chute 8641 | -6/Factory | Entered Waste 8641 | -6/Waste | The area was eerily silent 8641 | -6/Waste | Met up with 1 ally sucked down the chute earlier 8642 | -6/Waste | Met a frightened Derelict 8680 | -6/Waste | 2 allies followed down the chute 8917 | -6/Waste | Identified exit to Factory 8917 | -6/Waste | Discovered exit to Factory (range 16) 9111 | -6/Waste | Entered Factory 9111 | -6/Factory | Accompanied by 4 allies 9354 | -6/Factory | Fabricated L-31 Rogue (x3) 9448 | -6/Factory | Spotted B-75 Beast 9451 | -6/Factory | Destroyed B-75 Beast 9542 | -6/Factory | Repaired Powered Armor 10125 | -6/Factory | Discovered exit to Extension (range 11) 10399 | -6/Factory | Fabricated Cld. Particle Cannon (x1) 10477 | -6/Factory | Entered Extension 10477 | -6/Extension | Accompanied by 1 ally 10709 | -6/Extension | Rescued a captive Derelict 10858 | -6/Extension | Rescued a captive Derelict 10936 | -6/Extension | Spotted B-75 Beast 11383 | -6/Extension | Destroyed B-75 Beast 11449 | -6/Extension | Spotted B-75 Beast 12221 | -6/Extension | Destroyed B-75 Beast 12252 | -6/Extension | Identified exit to Factory 12252 | -6/Extension | Discovered exit to Factory (range 3) 12544 | -6/Extension | Rescued a captive Derelict 12601 | -6/Extension | Rescued A7 12799 | -6/Extension | Identified exit to Cetus 12897 | -6/Extension | Discovered exit to Factory (range 10) 12921 | -6/Extension | Entered Cetus 12921 | -6/Cetus | Accompanied by 2 allies (A7) 12926 | -6/Cetus | Acquired a Cetus Manufacturing Module code from A7 12941 | -6/Cetus | Spotted Cetus Guard 12941 | -6/Cetus | Spotted Cetus Guard 12943 | -6/Cetus | Spotted Cetus Guard 12953 | -6/Cetus | Destroyed Cetus Guard 12958 | -6/Cetus | Destroyed Cetus Guard 12964 | -6/Cetus | Destroyed Cetus Guard 12964 | -6/Cetus | Spotted Cetus Guard 12969 | -6/Cetus | Allies destroyed Cetus Guard 13193 | -6/Cetus | Started Cetus Manufacturing Module 13218 | -6/Cetus | Manufactured an Enhanced Grunt 13243 | -6/Cetus | Manufactured an Enhanced Grunt 13268 | -6/Cetus | Manufactured an Enhanced Grunt 13293 | -6/Cetus | Manufactured an Enhanced Grunt 13297 | -6/Cetus | Cetus Manufacturing Module disabled 13376 | -6/Cetus | Build established: Scavenger-Tank 13532 | -6/Cetus | Escorted A7 to Cetus Mainframe 13761 | -6/Cetus | Identified exit to Archives 13761 | -6/Cetus | Discovered exit to Archives (range 15) 13804 | -6/Cetus | Spotted Cetus Guard 13804 | -6/Cetus | Spotted Cetus Guard 13806 | -6/Cetus | Spotted Cetus Guard 13809 | -6/Cetus | Spotted Cetus Guard 13813 | -6/Cetus | Allies destroyed Cetus Guard 13822 | -6/Cetus | Allies destroyed Cetus Guard 13833 | -6/Cetus | Destroyed Cetus Guard 13836 | -6/Cetus | Allies destroyed Cetus Guard 13837 | -6/Cetus | Discovered exit to Factory (range 16) 13852 | -6/Cetus | Met Revision 17 14003 | -6/Cetus | Entered Archives 14003 | -6/Archives | Accompanied by 3 allies (A7) 14008 | -6/Archives | Received a hacking code to weaken MAIN.C 14069 | -6/Archives | Unable to access archive contents 14069 | -6/Archives | Unable to access archive contents 14069 | -6/Archives | Unable to access archive contents 14079 | -6/Archives | Discovered exit to Factory (range 15) 14095 | -6/Archives | Unable to access archive contents 14102 | -6/Archives | Identified exit to Hub_04(d) 14102 | -6/Archives | Discovered exit to Hub_04(d) (range 15) 14111 | -6/Archives | Unable to access archive contents 14118 | -6/Archives | Discovered exit to Hub_04(d) (range 13) 14161 | -6/Archives | Unable to access archive contents 14320 | -6/Archives | Entered Hub_04(d) 14320 | -6/Hub_04(d) | Accompanied by 2 allies 14924 | -6/Hub_04(d) | Found Prototype Launcher 14970 | -6/Hub_04(d) | Identified Rocket Array 14979 | -6/Hub_04(d) | Found Rocket Array 15223 | -6/Hub_04(d) | Discovered exit to Factory (range 7) 15746 | -6/Hub_04(d) | Discovered exit to Factory (range 5) 16086 | -6/Hub_04(d) | Discovered exit to Factory (range 12) 16345 | -6/Hub_04(d) | Identified exit to Garrison 16357 | -6/Hub_04(d) | Build established: Scavenger-Skirmisher 16360 | -6/Hub_04(d) | Entered Garrison 16484 | -6/Garrison | Garrison Relay disabled 16516 | -6/Garrison | Triggered checkpoint 16817 | -6/Garrison | Build established: Scavenger-Tank 16896 | -6/Garrison | Discovered exit to Factory (range 15) 16965 | -6/Garrison | Entered Factory 16965 | -5/Factory | Evolved 2 slots: Power x1, Utility x1 17642 | -5/Factory | Build established: Generator-Tank 18967 | -5/Factory | Identified exit to Factory 18967 | -5/Factory | Discovered exit to Factory (range 22) 19570 | -5/Factory | Build established: Scavenger-Mutant 19900 | -5/Factory | Fabricated Cld. Particle Cannon? 20019 | -5/Factory | Build established: Scavenger-Tank 20129 | -5/Factory | Identified exit to Upper Caves 21645 | -5/Factory | Entered Upper Caves 21678 | -5/Upper Caves | Attracted the attention of an 0b10 base 21746 | -5/Upper Caves | Destroyed 7 combat bots 21747 | -5/Upper Caves | Learned 8 Factory zone layouts 21900 | -5/Upper Caves | Attracted the attention of an 0b10 checkpoint 21945 | -5/Upper Caves | Learned location of 1 exit from Proximity Caves 22623 | -5/Upper Caves | Core integrity fell below 50% 22836 | -5/Upper Caves | Encountered a Warlord checkpoint 22862 | -5/Upper Caves | Learned Factory stockpile data 22887 | -5/Upper Caves | Identified exit to Upper Caves 22887 | -5/Upper Caves | Discovered exit to Upper Caves (range 8) 23419 | -5/Upper Caves | Build established: Scavenger-Gunner 24259 | -5/Upper Caves | Entered another Upper Caves area 24275 | -5/Upper Caves | Learned location of 1 exit from Factory 24937 | -5/Upper Caves | Identified exit to Warlord 24937 | -5/Upper Caves | Discovered exit to Warlord (range 9) 25252 | -5/Upper Caves | Encountered a Warlord checkpoint 25563 | -5/Upper Caves | Entered Warlord 25687 | -5/Warlord | Identified exit to Proximity Caves 25687 | -5/Warlord | Discovered exit to Proximity Caves (range 12) 26117 | -5/Warlord | Found Prototype Special Weapon 26118 | -5/Warlord | Identified RU-N14's Throwing Claymores v3 26499 | -5/Warlord | Warlord's base attacked by MAIN.C 26530 | -5/Warlord | Found Prototype Launcher 26534 | -5/Warlord | Found Prototype Energy Cannon 26534 | -5/Warlord | Identified Vortex Cannon 26537 | -5/Warlord | Found Vortex Cannon 26849 | -5/Warlord | Warlord forces counterattacked 26952 | -5/Warlord | Build established: Scavenger-Tank 27049 | -5/Warlord | Spotted Striker 27098 | -5/Warlord | P-80 Master assimilated allied EM-Q71(Y) 27130 | -5/Warlord | Core integrity fell below 20% 27146 | -5/Warlord | Identified Vortex Catalyst Activator 27174 | -5/Warlord | Warlord base infiltrated, sounded retreat 27175 | -5/Warlord | Lost 10 parts (5p1n1u3w) 27374 | -5/Warlord | Found Prototype Ballistic Cannon 27375 | -5/Warlord | Identified Hvy. Autocannon 27386 | -5/Warlord | Spotted Executioner 27405 | -5/Warlord | Destroyed by Executioner with Helical Railgun Last Messages --------------- 27374_ Acquired Prototype Ballistic Cannon. 27375_ Identified Hvy. Autocannon. 27382_ Acquired Flexi-carbon Leg. 27388_ Acquired Unknown Protection. 27389_ ANNOUNCEMENT: MAIN.C reinforcements approaching through caves, arriving soon. 27390_ Identified Hvy. Armor Plating. 27392_ Penetrated by Slug. 27396_ Executioner suffers critical hit (Sunder). 27396_ Executioner Prototype Ballistic Gun ripped off. 27396_ Penetrated by Slug. 27398_ Executioner suffers critical hit (Sunder). 27398_ Executioner Prototype Device ripped off. 27399_ ANNOUNCEMENT: Detected 1 Saboteur squad, 1 Grunt squad, 1 Programmer squad, 1 Hunter squad, with prototype support. 27401_ Penetrated by Slug. 27402_ System corrupted: Component data lost. 27404_ Executioner suffers critical hit (Sunder). 27404_ Executioner Prototype Leg ripped off. [Achievement: 20k Club] Map ----- +----------------------------------------------------+ | ??????????????????????????? ???????????????????? | | ??????????????????????????? #??????????????????? | | ??????????????????????????? #??????????????????? | | ??????????????????????????? #??????????????????? | | ??????????????????????????? #??????????????????? | | ??????????????????????????? #??????????????????? | | ??????????????????????????? +??????????????????# | | ??????????????????????????# #?????????????????## | | ??????????????????????????# #?????????????????# | | ??????????????????????????# #?????????????????# | | ??????????????????????????# #?????????????????# | | ??????????????????????????# #?????????????????# | | ??????????????????????????# #?????????????????## | | ??????????????????????????# #??????????????????# | | ??????????????????????????# #??????????????????? | | ??????????????????????????# ;??????????????????? | | ??????????????????????????#[ #??????????????????? | | ??????????????????????????#E= ##?????????????????? | | ?????????????#############; ;###???????????????? | | ?????????????# """ """ # ; ; #???????????????? | | ?????????????# """ """ # ; ; ##??????????????? | | ?????????????# """ """ ; ; ; #??""??????????? | | ?????????????# ; ; % ; #?#""#?????????? | | ?????????????# ; ; |=;; ###""#?? ?##???? | | ?????????????# "" # ??? | | ?????????????# ]@ "" % ### | | ?????????????# = # %"" *%* """ | | ??????????###########/ [ #!% *%% "" | | ????????###"""## "# [%[% !%! ![=!*=% | | ????????# ; %/ % *%= = ![!!%%[% | | ????????# ; !!%=%/ = !%= =%=%%% %% | | ????????# [[ # % %%! %* %== !=% | | ????????# [ [ [% ==!=% *=![!*!%" % " | | ????????# [[ ! != =%!*=[=|""! """""" | | ????????# ] [%!= " "####### | | ????????# = ;=*;;;; "#####?????? | | ????###?# ; ;""#?????????? | | ##### ####""" = ; " "#?????????? | | % " """??????????? | | "?"??????????? | | "????????????? | | #?????????????? | | "###### ## # ??????????????? | | ^^^###????##### ???????????????? | | #??????????# ^ """ #####??????????? | | #??????????#^ ^ " #??????????? | | #??????????# """ """ ##"" #??????????# | | ########???# """ """ #?### #?????????## | | ## #???# """ """ #????# #?????????# | | + ||#???# #????# #?????????# | +----------------------------------------------------+ Best States ------------- Heat Dissipation 67 Coolant Potential 80 Energy Generation 50 Energy Capacity 760 Matter Stores 300 Matter Capacity 300 Sight Range 16 Robot Scan Range 20 Terrain Scan Density 10 ECM Strength 2 Jamming Range 14 Base Temperature (-) 150 Armor Coverage 900 Resistance: KI 35 Resistance: TH 35 Resistance: EX 35 Resistance: EM 35 Resistance: I 35 Resistance: S 35 Resistance: P 35 Core Shielding 20 Evasion (%) 55 Targeting Accuracy 8 Recoil Reduction 4 Offensive Hacking 30 Item Schematics ----------------- Gravmag System | -7/Factory | Scanalyzed Exp. Sensor Array | -7/Factory | Scanalyzed Component Analysis Suite | -7/Factory | Scanalyzed Cld. Particle Cannon | -6/Factory | Scanalyzed Lrn. Proton Cannon | -6/Extension | Hacked Robot Schematics ------------------ G-47 Trooper | -7/Factory | Hacked L-31 Rogue | -7/Storage | Hacked G-50 Soldier | -6/Extension | Hacked E-15 Imp | -6/Hub_04(d) | Hacked Fabricated ------------ G-47 Trooper | x3 | -7/Factory L-31 Rogue | x3 | -6/Factory L-31 Rogue | x3 | -6/Factory L-31 Rogue | x3 | -6/Factory Cld. Particle Cannon | x1 | -6/Factory Cld. Particle Cannon | x1 | -5/Factory Alien Tech Used ----------------- None Achievements -------------- 20k Club Armchair Analyst Explorer I Survived The Infestation It's Just You Knowing Is Half The Battle Main Advantage Maximum Efficiency My Command Is Your Wish Overkill Preemptive Strike Prison Break Project G-00 Release The Drones! Respectable Loadout Revising The Future Tourist War Machine Challenges ------------ None Game ------ Seed GrenadeBiocellWheel Manual? 0 Play Time 06:12:45 Cumulative 16.4 hours Start 2022.04.04 @ 21:41:59 End 2022.04.06 @ 22:53:54 Sessions 13 Manual Loads 0 Difficulty Explorer Special Mode None Game No. 4 Rogue 2 Adventurer 0 Explorer 2 Win Type - Total 0 Types 0/0/0/0/0/0/0/0/0 Lore% 19 Gallery% 15 Achievement% 17 Wizard Run 0 Options --------- ASCII 0 Keyboard 0 Movement Mouse Keybinds 0 Fullscreen 2 Font 24/Smallcaps Map View 76x50 Tactical HUD 1 Map Filters NONE Filters NONE Steam 1 RUN: c91144cb-b1c0-4a3c-9988-7b876b61b731